Cogmind - Beta 14 @@@ ROGUE MODE // 2024.08.11 @ 12:27:48 Player: Plexion Result: Destroyed by YI-UF0 with YI-UF0's Doublenader Performance ------------- Evolutions (0) 0 Regions Visited (2) 400 Robots Destroyed (25) 125 Value Destroyed (467) 467 Prototype IDs (0) 0 Alien Tech Used (0) 0 Bonus (0) 0 TOTAL SCORE: 992 Bonus ------- None Cogmind --------- Core Integrity 0/250 Matter 279/300 Energy 100/100 System Corruption 0% Temperature Cool (0) Movement Core (250) Ox4 Location -10/Mines Parts ------- > --- POWER (1) -------- (None) > --- PROPULSION (2) --- (None) > --- UTILITY (2) ------ Medium Storage Unit > --- WEAPON (2) ------- Light Cannon > --- INVENTORY (10) --- Light Ion Engine Light Treads Wheel Compact Wheel Seismic Detector EM Pulse Gun Grenade Launcher Peak State ------------ > --- POWER ------------ Ion Engine > --- PROPULSION ------- Light Treads Light Treads > --- UTILITY ---------- Small Storage Unit Medium Storage Unit > --- WEAPON ----------- Medium Laser Assault Rifle > --- INVENTORY -------- Light Ion Engine Wheel Compact Wheel EM Pulse Gun Grenade Launcher [Rating: 7] Favorites ----------- Power Ion Engine Engine Ion Engine Propulsion Light Treads Treads Light Treads Wheel Compact Wheel Utility Medium Storage Unit Device Seismic Detector Storage Medium Storage Unit Weapon Assault Rifle Energy Gun Medium Laser Ballistic Gun Assault Rifle Ballistic Cannon Light Cannon Launcher Grenade Launcher Build | -11 -10 -10 ------- Run | Yrd Mat Min Slots Evolved . | . . . Power . | . . . Propulsion . | . . . Utility . | . . . Weapon . | . . . Parts Attached 14 | 8 5 1 Power 1 | 1 . . Engine 1 | 1 . . Core . | . . . Reactor . | . . . Propulsion 3 | 3 . . Treads 2 | 2 . . Leg . | . . . Wheel 1 | 1 . . Hover . | . . . Flight . | . . . Utility 4 | 1 3 . Device 2 | . 2 . Storage 2 | 1 1 . Processor . | . . . Hackware . | . . . Protection . | . . . Artifact . | . . . Weapon 6 | 3 2 1 Energy Gun 3 | 2 1 . Energy Cannon . | . . . Ballistic Gun 1 | 1 . . Ballistic Cannon 1 | . . 1 Launcher 1 | . 1 . Special Weapon . | . . . Impact Weapon . | . . . Slashing Weapon . | . . . Piercing Weapon . | . . . Special Melee Weapon . | . . . Unidentified Prototypes . | . . . Parts Lost 5 | . . 5 Power 1 | . . 1 Propulsion 2 | . . 2 Utility . | . . . Weapon 2 | . . 2 Highest Loss Streak 5 | . . 5 To Critical Strikes . | . . . Average Slot Usage (%) 90 | . 91 85 Engine 13 | . 14 13 Treads 27 | . 28 27 Device 5 | . 5 2 Storage 14 | . 14 14 Energy Gun 13 | . 13 13 Ballistic Gun 13 | . 14 13 Peak Build Rating 7 | 6 7 7 Average Rating 6 | 4 6 5 On Entrance 4 | . 6 7 Naked Turns . | . . . Heaviest Build 20 | 14 20 20 Greatest Support 40 | 40 40 40 Greatest Overweight (x) 2 | 2 . . Average Overweight (x) . | . . . Largest Inventory Capacity 10 | 8 10 10 Average Capacity 9 | 7 9 10 Most Carried 8 | 4 7 8 Average Carried 5 | 2 5 7 Final Capacity 10 | 8 10 10 Final Carried 7 | 4 7 7 Class Distribution -------------------- 100% | Mutant Dominant Class ---------------- Mutant | -10/Materials Mutant | -10/Mines Resources | -11 -10 -10 ----------- Run | Yrd Mat Min Matter Collected 584 | 199 332 53 Remotely . | . . . Salvage Created 692 | . 571 121 Parts 49 | . 44 5 Haulers Intercepted 2 | . 2 . Recyclers Shooed . | . . . Parts Field Recycled . | . . . Retrieved Matter . | . . . Parts Self-Destructed . | . . . Prevented . | . . . Kills | -11 -10 -10 ------- Run | Yrd Mat Min Combat Hostiles Destroyed 16 | . 13 3 Guns 13 | . 10 3 AOE 3 | . 3 . Classes Destroyed 7 | . 7 . Worker 2 | . 1 1 Builder 2 | . 2 . Tunneler 1 | . 1 . Hauler 2 | . 2 . Watcher 2 | . 2 . Swarmer 7 | . 6 1 Grunt 9 | . 7 2 Best Kill Streak 8 | . 8 2 Combat Bots Only 5 | . 5 2 Max Kills in Single Turn 1 | . 1 1 Gunslinging . | . . . Exploded 1 | . 1 . Melee . | . . . Uniques/NPCs Destroyed . | . . . Combat | -11 -10 -10 -------- Run | Yrd Mat Min Hostile Shots Fired 82 | . 49 33 Missed 22 | . 14 8 Damage Taken 900 | . 360 540 Core 263 | . 76 187 Absorbed by Shields . | . . . Core Remaining (%) 100 | 100 . . Volleys Fired 76 | . 52 24 Largest 2 | . 2 2 Hottest 70 | . 70 70 Shots Fired 140 | . 96 44 Gun 129 | . 89 40 Cannon 4 | . . 4 Launcher 7 | . 7 . Special . | . . . Kinetic 69 | . 45 24 Thermal 64 | . 44 20 Explosive 7 | . 7 . Electromagnetic . | . . . Robot Hit Streak 11 | . 11 6 Robot Miss Streak 3 | . 3 3 Penetration Max . | . . . Secondary Targets 1 | . 1 . Max Gunslinging Chain 1 | . 1 . Shots Hit Robots 85 | . 57 28 Core Hits 40 | . 31 9 Critical Kills . | . . . Critical Parts Destroyed . | . . . Critical Strikes 3 | . 2 1 Burn 3 | . 2 1 Melee Attacks . | . . . Impact . | . . . Slashing . | . . . Piercing . | . . . Sneak Attacks . | . . . Combat Hostiles . | . . . Follow-up Attacks . | . . . Damage Inflicted 1388 | . 1004 384 Guns 1059 | . 713 346 Cannons 35 | . . 35 Explosions 291 | . 291 . Melee . | . . . Ramming 3 | . . 3 Kinetic 484 | . 283 201 Thermal 610 | . 430 180 Explosive 291 | . 291 . Electromagnetic . | . . . Impact . | . . . Slashing . | . . . Piercing . | . . . Highest Corruption . | . . . Average Corruption . | . . . Corruption Purged . | . . . Corruption Blocked . | . . . Overload Shots . | . . . Overflow Damage . | . . . Projectiles . | . . . Explosions . | . . . Melee . | . . . Knockbacks 1 | . . 1 Impact . | . . . Kinetic 1 | . . 1 Secondary . | . . . Self-Inflicted Damage 12 | . 12 . Shots 1 | . 1 . Rammed 2 | . 1 1 Targets Rammed 2 | . 1 1 Kicked . | . . . Crushed . | . . . Highest Temperature 153 | . 75 153 Average Temperature 33 | . 23 54 Received Heat Transfer 201 | . 120 81 Siege Activations . | . . . Robots Corrupted . | . . . Combat Hostiles . | . . . Parts Fried . | . . . Impact Corruptions . | . . . Robots Melted . | . . . Combat Hostiles . | . . . Parts Melted 4 | . 3 1 Heat Transferred 1961 | . 1369 592 Parts Sabotaged . | . . . Parts Stolen . | . . . Parts Stripped . | . . . Power Chain Reactions . | . . . Alert | -11 -10 -10 ------- Run | Yrd Mat Min Peak Influence 241 | . 218 241 Initial 66 | . . 66 Average 109 | . 103 184 Maximum Alert Level 1 | . 1 1 Low Security (%) 81 | 100 86 46 Level 1 18 | . 13 53 Level 2 . | . . . Level 3 . | . . . Level 4 . | . . . Level 5 . | . . . High Security . | . . . Max Security . | . . . Squads Dispatched 2 | . 2 . Investigation 1 | . 1 . Extermination . | . . . Reinforcement 1 | . 1 . Assault . | . . . Garrison . | . . . Intercept . | . . . Searches Triggered . | . . . Construction Impeded . | . . . Haulers Reinforced . | . . . Active Scanning Responses . | . . . Cargo Convoy Interrupts . | . . . Stealth | -11 -10 -10 --------- Run | Yrd Mat Min Distress Signals 1 | . 1 . Communications Jammed . | . . . Distress Signals . | . . . Times Spotted 28 | . 21 7 Peak Tracking Total 4 | . 4 4 Tactical Retreats 4 | . 2 2 Traps | -11 -10 -10 ------- Run | Yrd Mat Min Traps Triggered 1 | . 1 . Indirectly . | . . . Trap Hack Attempts . | . . . Triggered . | . . . Disarmed . | . . . Reprogrammed . | . . . Reused . | . . . Traps Extracted . | . . . Installed . | . . . Triggered . | . . . Machines | -11 -10 -10 ---------- Run | Yrd Mat Min Machines Disabled 2 | . 2 . Max in Single Turn 1 | . 1 . Machines Repaired . | . . . Machines Dismantled . | . . . Machines Sabotaged . | . . . Overloaded Fab Kills . | . . . Hacking | -11 -10 -10 --------- Run | Yrd Mat Min Machines Accessed 7 | . 7 . Terminals 6 | . 6 . Fabricators . | . . . Repair Stations . | . . . Recycling Units 1 | . 1 . Scanalyzers . | . . . Garrison Access . | . . . Total Hacks 21 | . 21 . Successful 13 | . 13 . Failed 7 | . 7 . Catastrophic 2 | . 2 . Database Lockouts 1 | . 1 . Manual 20 | . 20 . Terminals 20 | . 20 . Fabricators . | . . . Repair Stations . | . . . Recycling Units 1 | . 1 . Scanalyzers . | . . . Garrison Access . | . . . Terminal Hacks 4 | . 4 . Robot Analysis 2 | . 2 . Terminal Index 1 | . 1 . Locate Traps 1 | . 1 . Fabricator Hacks . | . . . Repair Station Hacks . | . . . Recycling Unit Hacks 1 | . 1 . Retrieve Components 1 | . 1 . Scanalyzer . | . . . Garrison Access Hacks . | . . . Unauthorized Hacks 8 | . 8 . Terminals 8 | . 8 . Botnet 1 | . 1 . Operators 1 | . 1 . Skim 6 | . 6 . Fabricators . | . . . Repair Stations . | . . . Recycling Units . | . . . Scanalyzers . | . . . Garrison Access . | . . . Data Cores Recovered . | . . . Used . | . . . Hacking Detections 5 | . 5 . Full Trace Events . | . . . Feedback Events . | . . . Feedback Blocked . | . . . Robot Schematics Acquired . | . . . Robots Built . | . . . Authchips . | . . . Time . | . . . Total Robot Build Rating . | . . . Part Schematics Acquired . | . . . Parts Built . | . . . Authchips . | . . . Time . | . . . Total Part Build Rating . | . . . Parts Repaired . | . . . Time . | . . . Parts Recycled . | . . . Recycled Matter . | . . . Retrieved Matter . | . . . Retrieved Components 10 | . 10 . Parts Scanalyzed . | . . . Part Schematics Acquired . | . . . Parts Damaged . | . . . Bothacking | -11 -10 -10 ------------ Run | Yrd Mat Min Used RIF Installer . | . . . Robots Hacked . | . . . Non-combat . | . . . Combat . | . . . Robot Hacks Applied . | . . . Relay Couplers Released . | . . . Fabnet Peak Effective % . | . . . Robots Rewired . | . . . Allies Hacked . | . . . Hacks Repelled . | . . . Allies | -11 -10 -10 -------- Run | Yrd Mat Min Total Allies . | . . . Largest Group . | . . . Highest-Rated Group . | . . . Highest-Rated Ally . | . . . Total Orders . | . . . Ally Attacks . | . . . Total Damage . | . . . Kills . | . . . Allies Corrupted . | . . . Allies Melted . | . . . Intel | -11 -10 -10 ------- Run | Yrd Mat Min Robot Analysis Total 2 | . 2 . Derelict Logs Recovered 1 | . . 1 Drone Launches . | . . . Drone Recoveries . | . . . Exploration | -11 -10 -10 ------------- Run | Yrd Mat Min Turns Passed 1456 | 83 1154 219 Spaces Moved 584 | 46 465 73 Core 7 | 7 . . Treads 577 | 39 465 73 Legs . | . . . Wheels . | . . . Hover . | . . . Flight . | . . . Fastest Speed 50 | 50 160 160 Average Speed 159 | 149 160 160 Slowest Speed 160 | 160 160 160 Overloaded Moves . | . . . Propulsion Burnouts . | . . . Robots Hopped . | . . . Cave-ins Triggered . | . . . Exploration Rate (%) 34 | 5 73 26 Regions Visited 2 Branch Regions 1 Pre-discovered Areas 1 | . 1 . Known Exits Taken . | . . . Unknown Exits Taken 2 | 1 1 . Scrap Searched 1 | . . 1 Spaces Dug . | . . . Terrain Destroyed 50 | . 50 . Melee . | . . . Projectile . | . . . AOE 50 | . 50 . Terrain Rammed . | . . . Walls Destroyed . | . . . Machines Disabled . | . . . Actions | -11 -10 -10 --------- Run | Yrd Mat Min Total 966 | 57 778 131 Wait 281 | . 250 31 Move 582 | 45 464 73 Hop . | . . . Pick Up 6 | 3 3 . Fast Attach 9 | 7 2 . Attach 2 | . 1 1 Detach 4 | 1 2 1 Swap 3 | 1 2 . Drop 1 | . 1 . Fire 76 | . 52 24 Melee . | . . . Ram . | . . . Kick . | . . . Crush 2 | . 1 1 Escape Stasis . | . . . Rewire . | . . . Trap . | . . . Miscellaneous . | . . . Route ------- -11/Scrapyard -10/Materials (discovered 5 exits: *Mat x3 / [*Min] / Sub) -10/Mines (discovered 3 exits: Mat x2 / Exi) History --------- Turn | Location | Event 39 | -11/Scrapyard | Discovered new exit (range 15) 84 | -11/Scrapyard | Entered Materials 331 | -10/Materials | Build established: Mutant 417 | -10/Materials | Discovered new exit (range 16) 492 | -10/Materials | Discovered new exit (range 16) 683 | -10/Materials | Central database locked down 1084 | -10/Materials | Learned Storage emergency access door positions 1122 | -10/Materials | Identified exit to Materials 1148 | -10/Materials | Learned 2 Mines zone layouts 1166 | -10/Materials | Learned location of Subcaves (-10) 1173 | -10/Materials | Learned 2 Mines zone layouts 1180 | -10/Materials | Learned location of 2 exits from Subcaves 1197 | -10/Materials | Learned Storage stockpile data 1222 | -10/Materials | Identified exit to Subcaves 1222 | -10/Materials | Learned location of 2 exits from Materials 1238 | -10/Materials | Entered Mines 1294 | -10/Mines | Identified exit to Exiles 1446 | -10/Mines | Core integrity fell below 50% 1454 | -10/Mines | Core integrity fell below 20% 1457 | -10/Mines | Destroyed by YI-UF0 with YI-UF0's Doublenader Last Messages --------------- 01375_ U-05 Engineer builds a Wall. 01376_ K-01 Serf collects debris. 01377_ The unstable cave ceiling collapses. 01377_ Lgt. Assault Rifle crushed. 01381_ The unstable cave ceiling collapses. 01385_ K-01 Serf collects debris. 01396_ K-01 Serf destroyed. 01399_ Acquired 6 matter. 01408_ R-06 Scavenger collects Lgt. Ion Engine. 01443_ YI-UF0: "BAROOM!" 01443_ YI-UF0: "BADABOOM!" 01445_ Lgt. Treads destroyed. 01447_ Assault Rifle destroyed. 01447_ Ion Engine destroyed. 01447_ Med. Laser destroyed. 01449_ The unstable cave ceiling collapses. 01452_ YI-UF0 mumbles something. 01452_ The unstable cave ceiling collapses. 01453_ YI-UF0 knocked back. 01455_ Lgt. Treads destroyed. Map ----- +----------------------------------------------------+ | ?# """#????## #########! """ #? | | ?# #?????## #???????# """ #? | | ?# ######## #???????# """ #? | | ?####### # #???????# #? | | ?????## # #???????###%##### | | ?????# # ## #?????????# ## | | ??????# #!* #?????????# ## ## | | ??????# ## # #?????????# ## ## | | ??????# ###????###### ## ## | | ??????# # #?????# = ## | | ??????# # ###?????# ########## | | ??????## ##??????????????????# | | ???????## %##???????????????????# | | ????????# #???????????????????? | | ???????#% ##?##??#????????????? | | ???????# g# # ?? ????????????? | | ??????## # ## #???????????? | | ??????# % #????????????? | | ??????# #?????????????? | | ??????# # ##?????????????? | | ???????# #??????????????? | | ????#### ?????????????? | | ????# ##? !% ???????????? | | ???## ##? ??????????? | | ???# #?? ?????????? | | ???# @ #??? ?????????? | | ???# ##???? ??????????? | | ???# ##?????? ??????????? | | ???# #???????????????????? | | ??# ##???????????????????? | | ??# ##????????????????????? | | ??# ##?????????????????????? | | ??## ####??????????????????????? | | ???###??????????????????????????? | | ????????????????????????????????? | | ????????????????????????????????? | | ????????????????????????????????? | | ????????????????????????????????? | | ????????????????????????????????? | | ????????????????????????????????? | | ????????????????????????????????? | | ????????????????????????????????? | | ????????????????????????????????? | | ????????????????????????????????? | | ????????????????????????????????? | | ????????????????????????????????? | | ????????????????????????????????? | | ????????????????????????????????? | | ????????????????????????????????? | | ????????????????????>???????????? | +----------------------------------------------------+ Best States ------------- Heat Dissipation 25 Energy Generation 10 Energy Capacity 250 Matter Stores 300 Matter Capacity 300 Sight Range 16 Terrain Scan Density 10 Evasion (%) 40 Recoil Reduction 2 Item Schematics ----------------- None Robot Schematics ------------------ None Fabricated ------------ Nothing Alien Tech Used ----------------- None Achievements -------------- None Challenges ------------ None Game ------ Seed ElectrostormAuthchipMachine Manual? 0 Play Time 00:09:03 Cumulative 611.0 hours Start 2024.08.11 @ 12:18:27 End 2024.08.11 @ 12:27:48 Sessions 1 Manual Loads 0 Difficulty Rogue Special Mode None Game No. 666 Rogue 579 Adventurer 87 Explorer 0 Win Type - Total 36 Types 8/0/22/1/1/1/3/0/0 Lore% 93 Gallery% 93 Achievement% 80 Wizard Run 0 Options --------- Layout 0 ASCII 0 Keyboard 1 Movement Numpad Keybinds 0 Fullscreen 2 Font 16/SmallcapsGlow Map View 88x55 Zoom Use 0% Tactical HUD 1 Map Filters NONE Filters NONE Steam 1 RUN: 93e81a7e-33dc-4315-9ed7-41e983ce8f54